bitfinex-derivatives/quotes_ETHF0:USTF0_20240930
["timestamp","ask_amount","ask_price","bid_price","bid_amount"]
[1727709500961,0.95396,2620.8,2620.1,0.9542]
[1727709501162,0.38163,2620.5,2620.4,0.38163]
[1727709501757,0.95396,2620.8,2620.1,4.162]
[1727709502063,0.38162,2620.5,2620.4,0.38164]
[1727709502258,4.7886,2621.0,2620.9,0.38156]
[1727709502259,3.58936,2621.0,2620.9,0.38156]
[1727709502462,4.16157,2621.3,2620.6,0.95401]
[1727709502658,4.16157,2621.3,2620.9,0.38156]
[1727709502659,0.38156,2621.0,2620.9,0.38156]
[1727709503463,0.38157,2620.9,2620.8,0.38157]
[1727709504962,0.38159,2620.7,2620.6,1.61459]
[1727709505457,0.38159,2620.7,2620.6,1.233]
[1727709505665,0.95393,2620.9,2620.4,0.13472006]
[1727709505864,0.38162,2620.5,2620.4,0.38163]
[1727709506263,0.38164,2620.4,2620.3,1.04024]
[1727709507270,0.38164,2620.4,2620.3,0.6586]
[1727709507977,0.38164,2620.4,2620.3,1.04025]
[1727709510073,0.95405,2620.6,2620.2,1.06336]
[1727709510268,0.38165,2620.3,2620.2,1.06336]
[1727709510472,0.38165,2620.4,2620.3,0.38164]
[1727709511181,0.38165,2620.3,2620.2,1.06335]
[1727709511564,0.38165,2620.3,2620.2,0.6817]
[1727709511764,0.38166,2620.2,2620.1,0.38167]
[1727709512364,4.00573,2620.4,2619.9,0.6902]
[1727709512674,0.38169,2620.1,2620.0,0.38168]
[1727709512979,0.38167,2620.3,2619.9,0.6902]
[1727709513165,0.38169,2620.1,2620.0,0.38167]
[1727709515272,0.38167,2620.3,2619.9,0.6902]
[1727709515669,0.38169,2620.1,2620.0,0.38167]
[1727709516672,0.38167,2620.3,2619.9,0.6902]
[1727709516873,0.38168,2620.2,2620.1,0.38167]
[1727709517372,0.38167,2620.3,2620.2,0.38165]
[1727709517968,1.05324,2620.4,2620.3,0.38165]
[1727709518169,0.38164,2620.4,2620.3,0.38165]
[1727709518583,0.38167,2620.3,2620.2,0.38165]
[1727709519270,3.33405,2620.6,2620.0,1.94135074]
[1727709519475,0.38164,2620.4,2620.3,0.38163]
[1727709519773,0.38163,2620.5,2620.4,0.38162]
[1727709521389,0.38164,2620.5,2620.4,0.38162]
[1727709521583,0.95405,2620.6,2620.3,0.98711074]
[1727709521789,0.38164,2620.4,2620.3,1.36874074]
[1727709521991,0.38164,2620.4,2620.3,0.38163]
[1727709522377,0.38164,2620.4,2620.3,1.36874074]
[1727709522782,3.816,2620.4,2620.2,0.98711074]
[1727709523084,3.816,2620.4,2620.0,0.98711074]
[1727709523085,2.38,2620.3,2620.0,0.98711074]
[1727709523288,7.6052,2620.3,2619.8,0.98711074]
[1727709523479,7.6052,2620.3,2619.6,1.48968155]
[1727709523480,0.38171,2620.0,2619.9,1.36880074]
[1727709525783,0.38171,2620.0,2619.9,0.98711074]
[1727709525989,2.38,2620.0,2619.8,0.98711074]
[1727709526185,0.38171,2619.9,2619.8,0.98711074]
[1727709528694,2.38,2620.0,2619.8,0.98711074]
[1727709528895,0.38171,2619.9,2619.8,0.98711074]
[1727709529099,3.33427,2620.0,2619.7,0.98711074]
[1727709529306,0.38171,2619.9,2619.7,0.99532356]
[1727709529596,5.96952,2619.8,2619.7,0.99532356]
[1727709529805,0.38174,2619.7,2619.6,0.99532356]
[1727709529991,1.04634,2619.7,2619.6,0.99532356]
[1727709530188,0.38175,2619.6,2619.5,0.99532356]
[1727709530390,0.38175,2619.6,2619.5,1.37709356]
[1727709530695,0.38175,2619.6,2619.5,0.38177]
[1727709530895,1.04635,2619.7,2619.6,0.38175]
[1727709531198,0.3817,2620.0,2619.6,2.5055891]
[1727709531398,0.3817,2620.0,2619.9,0.38171]
[1727709531596,3.2078,2620.3,2619.9,0.99529802]
[1727709531788,4.16196,2620.3,2619.9,0.99529802]
[1727709531993,0.38169,2620.1,2620.0,1.37698802]
[1727709532201,3.2078,2620.3,2620.0,0.99529802]
[1727709532395,3.2078,2620.3,2620.0,0.38168]
[1727709532396,0.38168,2620.1,2620.0,0.38168]
[1727709532599,0.38168,2620.1,2620.0,3.42218989]
[1727709533002,0.38168,2620.1,2620.0,1.93250834]
[1727709533402,0.38168,2620.1,2620.0,3.42218989]
[1727709533703,0.38168,2620.1,2620.0,1.93250834]
[1727709533905,0.38168,2620.1,2620.0,3.42218989]
[1727709534393,0.38168,2620.1,2620.0,1.55082834]
[1727709535497,0.38168,2620.1,2620.0,1.55131126]
[1727709536399,0.38168,2620.1,2620.0,0.99536947]
[1727709536400,15.78628,2620.1,2620.0,0.99536947]
[1727709536602,0.38169,2620.0,2619.9,0.99536947]
[1727709536798,0.38171,2619.9,2619.8,0.99536947]
[1727709537004,2.76171,2619.9,2619.8,0.99536947]
[1727709537200,0.38172,2619.8,2619.7,0.99536947]
[1727709537505,0.38172,2619.8,2619.5,1.87144155]
[1727709537506,0.38174,2619.7,2619.6,0.99536947]
[1727709538006,6.57934,2619.7,2619.6,0.99536947]
[1727709538399,6.1976,2619.7,2619.5,0.99536947]
[1727709538604,0.38175,2619.6,2619.5,0.99536947]
[1727709539100,0.38175,2619.6,2619.4,1.04867]
[1727709539101,0.38177,2619.5,2619.4,2.53835155]
[1727709539405,0.38177,2619.5,2619.4,4.08985685]
[1727709540305,0.38177,2619.5,2619.4,2.21814758]
[1727709540501,0.38177,2619.5,2619.4,2.59992758]
[1727709541003,0.38177,2619.5,2619.4,2.21814758]
[1727709541504,3.33436,2619.7,2619.4,0.9950441]
[1727709541705,1.64642,2619.6,2619.4,0.9950441]
[1727709541902,1.07375,2619.6,2619.5,0.99499112]
[1727709542093,1.07375,2619.6,2619.3,1.48968155]
[1727709542094,3.072,2619.6,2619.3,0.99499112]
[1727709542295,1.33619,2619.5,2619.3,0.99499078]
[1727709542495,0.38178,2619.4,2619.3,0.99499078]
[1727709542801,2.76178,2619.4,2619.3,0.99499078]
[1727709543002,0.3818,2619.3,2619.2,0.99499078]
[1727709543202,2.38,2619.4,2619.1,0.99499078]
[1727709543406,0.38181,2619.2,2619.1,0.99499078]
[1727709544295,0.38181,2619.2,2619.1,1.37681078]
[1727709545102,3.2078,2619.5,2619.0,1.68919078]
[1727709545308,3.072,2619.6,2619.1,0.99499078]
[1727709545507,0.38179,2619.4,2619.3,0.38179]
[1727709545807,0.38175,2619.7,2619.6,0.38174]
[1727709546008,3.58953,2619.8,2619.7,0.38174]
[1727709546198,7.50627,2620.0,2619.5,0.99426334]
[1727709546199,0.38172,2619.9,2619.5,0.99426334]
[1727709546400,0.38172,2619.9,2619.8,0.38172]
[1727709546598,0.38172,2619.9,2619.6,1.69406334]
[1727709546599,6.552,2620.0,2619.7,0.99426334]
[1727709546800,0.3817,2620.0,2619.9,0.38171]
[1727709547008,0.38171,2619.9,2619.8,1.05202]
[1727709547302,0.38172,2619.8,2619.7,1.37599334]
[1727709547696,0.38172,2619.8,2619.7,0.99426334]
[1727709548099,0.38174,2619.7,2619.6,2.07581334]
[1727709548897,0.38174,2619.7,2619.6,2.07580334]
[1727709549210,0.38174,2619.7,2619.6,1.69406334]
[1727709549397,0.38174,2619.7,2619.6,2.07581334]
[1727709550208,5.5878,2620.2,2619.6,6.0680507]
[1727709550396,2.38,2620.4,2620.1,0.38167]
[1727709550594,0.38166,2620.2,2620.1,0.38167]
[1727709550801,0.38166,2620.3,2620.2,0.38166]
[1727709551008,2.38,2620.4,2620.1,0.38167]
[1727709551009,0.38166,2620.2,2620.1,0.38167]
[1727709551604,0.38166,2620.2,2620.1,1.37666055]
[1727709552101,2.38,2620.4,2620.1,1.37667055]
[1727709552401,0.38166,2620.2,2620.1,0.99499055]
[1727709553013,0.38166,2620.2,2620.1,1.37667055]
[1727709553217,3.33411,2620.4,2620.1,1.9331772]
[1727709553511,3.33411,2620.4,2620.2,0.99543816]
[1727709553512,0.38165,2620.3,2620.2,0.99543816]
[1727709555605,0.38166,2620.2,2620.1,0.99543816]
[1727709556005,2.76166,2620.2,2620.1,0.99543816]
[1727709559012,0.38168,2620.1,2620.0,0.99543816]
[1727709559418,4.19848,2620.1,2620.0,0.99543816]
[1727709559617,4.19848,2620.1,2619.9,0.99543816]
[1727709559618,0.38169,2620.0,2619.9,0.99543816]
[1727709559806,0.38171,2619.9,2619.8,0.99543816]
[1727709560013,3.58951,2619.9,2619.8,0.99543816]
[1727709560219,4.19851,2619.9,2619.8,0.99543816]
[1727709560717,0.38171,2619.9,2619.8,0.99543816]
[1727709560914,0.38172,2619.8,2619.7,1.87141155]
[1727709561114,0.38172,2619.8,2619.7,3.04251751]
[1727709561625,0.38172,2619.8,2619.7,1.55283596]
[1727709561821,3.8168,2619.8,2619.6,1.48968155]
[1727709562009,0.38175,2619.6,2619.5,1.48968155]
[1727709562210,0.38175,2619.6,2619.5,3.04333916]
[1727709562411,0.38175,2619.6,2619.5,3.42510916]
[1727709564119,0.38175,2619.6,2619.5,3.42589286]
[1727709565213,0.38175,2619.7,2619.6,0.38175]
[1727709565418,0.38175,2619.7,2619.6,1.55444131]
[1727709565619,0.38175,2619.7,2619.6,1.93619131]
[1727709567225,0.38175,2619.7,2619.6,1.55444131]
[1727709567421,3.58947,2620.2,2619.8,0.38172]
[1727709567613,3.58947,2620.2,2619.6,10.06952286]
[1727709567614,3.2078,2620.2,2620.1,0.38168]
[1727709567820,9.7598,2620.7,2620.3,0.38164]
[1727709568014,9.7598,2620.7,2620.3,0.99676686]
[1727709568015,3.8884,2620.7,2620.3,0.99676686]
[1727709568310,3.8884,2620.7,2620.5,0.38162]
[1727709568311,3.2078,2620.7,2620.5,0.38162]
[1727709568518,3.58939,2620.7,2620.4,2.87312167]
[1727709568720,3.58939,2620.7,2620.5,1.55308191]
[1727709568721,3.2078,2620.7,2620.5,1.55308191]
[1727709568922,3.2078,2620.7,2620.6,0.99676686]
[1727709569135,3.58939,2620.7,2620.6,0.99676686]
[1727709569314,3.58939,2620.7,2620.4,1.49472481]
[1727709569315,0.38161,2620.6,2620.4,1.49472481]
[1727709569522,3.2078,2620.7,2620.5,1.3776846]
[1727709569820,3.58939,2620.7,2620.6,0.9960646]
[1727709570025,3.2078,2620.7,2620.6,0.9960646]
[1727709570324,3.5894,2620.7,2620.5,0.9960646]
[1727709570620,0.38161,2620.6,2620.5,0.9960646]
[1727709570819,3.5894,2620.7,2620.5,0.9960646]
[1727709571121,0.38161,2620.6,2620.5,0.9960646]
[1727709571322,3.2078,2620.7,2620.5,1.3776846]
[1727709571516,3.2078,2620.7,2620.5,0.9960646]
[1727709571719,3.5894,2620.7,2620.5,0.9960646]
[1727709571920,3.2078,2620.7,2620.5,0.9960646]
[1727709572121,3.5894,2620.7,2620.5,0.9960646]
[1727709572325,0.38161,2620.6,2620.5,0.9960646]
[1727709572719,3.2078,2620.7,2620.5,0.9960646]
[1727709572920,3.5894,2620.7,2620.5,0.9960646]
[1727709573320,3.2078,2620.7,2620.5,0.9960646]
[1727709573522,0.38161,2620.6,2620.5,0.9960646]
[1727709574625,2.38,2620.9,2620.5,5.36656652]
[1727709574626,0.38157,2620.9,2620.5,5.36656652]
[1727709574830,3.58936,2621.0,2620.7,0.38159]
[1727709575020,0.38156,2620.9,2620.8,0.7192]
[1727709575219,3.2078,2621.0,2620.6,1.69583201]
[1727709575220,0.38159,2620.7,2620.6,1.69583201]
[1727709575427,0.38159,2620.7,2620.6,0.99463201]
[1727709576425,0.38159,2620.7,2620.6,4.81063201]
[1727709576631,0.38159,2620.7,2620.6,0.99463201]
[1727709577922,0.95393,2620.9,2620.5,1.71383201]
[1727709578119,0.38161,2620.6,2620.5,1.71383201]
[1727709578726,0.38161,2620.6,2620.5,2.09545201]
[1727709579129,0.38161,2620.6,2620.5,1.71383201]
[1727709579626,0.38161,2620.6,2620.5,0.7192]
[1727709580325,0.6806,2621.1,2620.5,11.67095402]
[1727709580532,4.172,2621.6,2620.5,11.67095402]
[1727709580533,1.632,2621.5,2620.9,0.99280097]
[1727709580727,0.38149,2621.4,2621.1,0.38152]
[1727709580930,1.632,2621.5,2621.2,0.38152]
[1727709581128,0.38151,2621.3,2621.2,0.38152]
[1727709581320,0.38151,2621.3,2621.0,0.7211]
[1727709581321,0.6813,2621.6,2621.0,1.67497]
[1727709581526,3.2078,2621.7,2621.0,1.67497]
[1727709581527,0.38148,2621.5,2621.4,0.38149]
[1727709581727,4.16143,2621.7,2621.4,0.38149]
[1727709581728,0.38147,2621.6,2621.4,0.38149]
[1727709582029,4.16143,2621.7,2621.4,0.38149]
[1727709582030,0.38148,2621.5,2621.4,0.38149]
[1727709582230,0.38148,2621.5,2621.3,0.38149]
[1727709582735,3.2078,2621.7,2621.2,0.6693]
[1727709582934,3.2078,2621.7,2621.2,1.05081]
[1727709582935,0.3815,2621.3,2621.2,1.05081]
[1727709583332,0.3815,2621.3,2621.2,0.6693]
[1727709583524,0.9537,2621.5,2621.0,0.7211]
[1727709583728,0.38153,2621.1,2621.0,1.10264]
[1727709583934,1.3503,2621.4,2621.0,0.7211]
[1727709584149,0.3815,2621.3,2621.0,1.10264]
[1727709584435,0.38153,2621.2,2621.0,1.10264]
[1727709584635,2.30404,2621.4,2621.0,1.10264]
[1727709584829,0.38153,2621.1,2621.0,1.10264]
[1727709585134,0.95377,2621.3,2621.0,0.7211]
[1727709585329,0.38153,2621.1,2621.0,1.10265]
[1727709586935,0.38153,2621.1,2621.0,0.7211]
[1727709587332,0.95377,2621.3,2620.9,1.07455]
[1727709587535,0.38155,2621.0,2620.9,1.07455]
[1727709588034,0.38155,2621.0,2620.9,0.693]
[1727709588233,0.38158,2620.8,2620.7,1.07538]
[1727709588439,0.38157,2620.9,2620.8,0.38156]
[1727709589029,0.95387,2621.1,2620.7,1.07538]
[1727709589030,0.38158,2620.8,2620.7,1.07538]
[1727709589230,0.38158,2620.8,2620.7,1.07539]
[1727709590336,0.38158,2620.8,2620.5,0.99280097]
[1727709590337,0.38161,2620.6,2620.5,0.38161]
[1727709590838,0.3816,2620.7,2620.6,0.38159]
[1727709592331,0.95392,2620.9,2620.6,0.38159]
[1727709592332,0.38157,2620.9,2620.8,0.38156]
[1727709593243,0.38156,2621.0,2620.9,0.38156]
[1727709598039,0.38157,2620.9,2620.8,0.38157]
[1727709599439,0.38158,2620.8,2620.7,1.09248]
[1727709600936,0.38158,2620.8,2620.7,0.7109]
[1727709601137,0.9539,2621.0,2620.6,0.99280097]
[1727709601334,0.38159,2620.8,2620.7,0.38158]
[1727709601747,0.38159,2620.7,2620.6,1.37439097]
[1727709602944,0.38159,2620.7,2620.6,0.99280097]
[1727709603445,3.816,2620.7,2620.5,0.99280097]
[1727709603653,0.38162,2620.5,2620.4,1.70920097]
[1727709603856,0.38162,2620.5,2620.4,0.7164]
[1727709604352,0.38162,2620.5,2620.2,1.37446097]
[1727709604353,0.38165,2620.3,2620.2,1.37446097]
[1727709604951,0.95409,2620.5,2620.1,0.99280097]
[1727709604952,0.38166,2620.2,2620.1,0.99280097]
[1727709605345,0.38169,2620.0,2619.9,1.37450097]
[1727709605648,1.10428,2620.1,2620.0,0.38169]
[1727709605850,0.38169,2620.0,2619.9,1.37450097]
[1727709606051,1.10429,2620.1,2620.0,0.38169]
[1727709606248,0.7226,2620.1,2619.9,0.99280097]
[1727709606556,1.10428,2620.1,2620.0,1.37449097]
[1727709608662,1.10428,2620.1,2620.0,0.99280097]
[1727709608855,1.10428,2620.1,2620.0,1.37449097]
[1727709609052,1.10428,2620.1,2620.0,0.99280097]
[1727709611161,0.7226,2620.1,2620.0,1.92700505]
[1727709611464,1.10428,2620.1,2620.0,1.92700505]
[1727709612356,3.2078,2620.4,2620.2,0.38166]
[1727709612556,0.95401,2620.7,2620.2,0.99483391]
[1727709612557,2.30971,2620.7,2620.2,0.99483391]
[1727709612866,0.38164,2620.4,2620.3,2.75577391]
[1727709613357,1.3557,2620.7,2620.3,4.42025017]
[1727709613562,4.172,2620.9,2620.5,0.9950096]
[1727709613859,0.38158,2620.8,2620.7,0.38158]
[1727709614174,0.38157,2620.9,2620.8,0.38157]
[1727709614357,0.38156,2621.0,2620.8,0.38158]
[1727709614669,0.38156,2621.0,2620.8,2.0522896]
[1727709614956,0.38156,2621.0,2620.9,1.3765696]
[1727709615161,0.38156,2621.0,2620.9,0.9950096]
[1727709615364,4.19676,2621.0,2620.9,0.9950096]
[1727709615560,4.19676,2621.0,2620.8,2.0522896]
[1727709615561,0.38156,2620.9,2620.8,2.0522896]
[1727709616069,0.38156,2620.9,2620.8,1.6707096]
[1727709616365,0.38156,2620.9,2620.8,2.0522896]
[1727709616867,0.38156,2620.9,2620.8,1.6707096]
[1727709617867,0.38156,2620.9,2620.8,0.6757]
[1727709619360,0.38156,2620.9,2620.8,1.05728]
[1727709619665,0.38156,2620.9,2620.8,2.0522896]
[1727709620065,0.38156,2620.9,2620.8,1.05728]
[1727709620264,0.38155,2621.0,2620.9,0.38156]
[1727709620566,0.38155,2621.0,2620.9,1.3765696]
[1727709620762,0.38155,2621.0,2620.9,0.9950096]
[1727709621160,0.38156,2620.9,2620.8,2.0522796]
[1727709621567,0.38156,2620.9,2620.8,1.05727]
[1727709621866,0.38156,2620.9,2620.8,2.0520539]
[1727709622167,0.38156,2620.9,2620.8,1.67044799]
[1727709622573,0.38156,2620.9,2620.8,2.05202799]
[1727709622965,0.38156,2621.0,2620.9,0.38156]
[1727709623263,0.38156,2621.0,2620.8,1.67044799]
[1727709623469,0.38154,2621.1,2621.0,0.38154]
[1727709623668,0.38154,2621.1,2620.9,0.99474799]
[1727709623669,0.38153,2621.1,2620.9,1.66724799]
[1727709623858,0.38153,2621.1,2621.0,0.38155]
[1727709624066,0.38155,2621.0,2620.9,2.04879799]
[1727709624866,0.38153,2621.1,2620.9,2.04879799]
[1727709625073,1.03763,2621.2,2620.9,1.66724799]
[1727709625273,0.38153,2621.1,2621.0,0.38154]
[1727709625465,0.38153,2621.1,2621.0,1.37628799]
[1727709625769,0.38153,2621.2,2621.0,1.37628799]
[1727709626174,0.38152,2621.2,2621.1,0.99474799]
[1727709626373,0.6953,2621.6,2621.1,0.99474799]
[1727709626671,3.2078,2621.7,2621.6,0.38146]
[1727709626873,3.2078,2621.7,2621.3,0.99474799]
[1727709627177,3.58926,2621.7,2621.5,0.38148]
[1727709627367,3.2078,2621.7,2621.5,0.38148]
[1727709627569,3.2078,2621.7,2621.5,1.07888]
[1727709628074,3.2078,2621.7,2621.5,0.6974]
[1727709628277,0.38146,2621.6,2621.5,0.6974]
[1727709628461,3.58925,2621.7,2621.5,1.07888]
[1727709628666,3.2078,2621.7,2621.5,1.07888]
[1727709628867,0.38146,2621.6,2621.5,0.6974]
[1727709629068,3.2078,2621.7,2621.5,0.6974]
[1727709629372,0.38146,2621.6,2621.5,0.6974]
[1727709630070,3.8144,2621.6,2621.3,1.66254799]
[1727709630277,0.38149,2621.4,2621.3,1.66254799]
[1727709630475,3.2078,2621.4,2621.1,1.67804799]
[1727709630673,0.38152,2621.2,2621.1,1.67804799]
[1727709630876,0.38152,2621.2,2621.1,0.6833]
[1727709631082,0.38153,2621.1,2621.0,1.65804799]
[1727709631572,0.38153,2621.1,2621.0,0.99474799]
[1727709631878,0.38155,2621.0,2620.9,0.99474799]
[1727709632378,0.38156,2620.9,2620.8,0.99474799]
[1727709632769,7.22247,2621.1,2620.7,0.99474799]
[1727709632770,6.2686,2621.1,2620.7,0.99474799]
[1727709632983,0.38158,2620.8,2620.7,0.99474799]
[1727709634175,3.58934,2621.1,2620.9,0.38156]
[1727709634370,0.38152,2621.2,2621.0,0.38154]
[1727709634580,3.8886,2621.4,2620.9,0.99474799]
[1727709634876,3.2078,2621.7,2621.1,0.99474799]
[1727709635070,3.2078,2621.7,2621.2,2.36424799]
[1727709635266,0.38147,2621.6,2621.4,0.38149]
[1727709635471,0.38148,2621.5,2621.3,1.37623799]
[1727709635675,3.2078,2621.7,2621.3,0.99474799]
[1727709635881,3.2078,2621.7,2621.4,0.38149]
[1727709636069,3.2078,2621.7,2621.2,2.36424799]
[1727709636375,0.38146,2621.6,2621.3,0.38149]
[1727709636579,0.38146,2621.6,2621.4,0.38149]
[1727709636777,0.38146,2621.6,2621.2,2.36424799]
[1727709636778,0.38149,2621.5,2621.2,2.74575799]
[1727709636973,0.38149,2621.4,2621.2,2.36424799]
[1727709637177,3.2078,2621.7,2621.2,2.36424799]
[1727709637375,3.58926,2621.7,2621.2,2.36424799]
[1727709637580,0.38146,2621.6,2621.4,0.38148]
[1727709637874,3.58925,2621.7,2621.5,0.38147]
[1727709638078,3.2078,2621.7,2621.2,2.36424799]
[1727709638278,0.38146,2621.6,2621.4,0.38148]
[1727709638480,3.58926,2621.7,2621.4,0.38148]
[1727709638680,0.38147,2621.6,2621.4,0.38148]
[1727709639182,3.2078,2621.7,2621.2,2.36424799]
[1727709639480,0.3815,2621.4,2621.2,2.74575799]
[1727709639679,0.3815,2621.3,2621.2,2.36424799]
[1727709641180,0.38149,2621.4,2621.2,2.74575799]
[1727709641973,3.2078,2621.7,2621.2,2.36424799]
[1727709642173,0.38149,2621.4,2621.3,0.3815]
[1727709642482,0.38149,2621.4,2621.2,2.36424799]
[1727709642788,0.38149,2621.4,2621.3,0.3815]
[1727709643173,0.38148,2621.5,2621.3,0.38149]
[1727709643385,0.38148,2621.5,2621.2,2.36424799]
[1727709643386,0.38148,2621.5,2621.4,0.38149]
[1727709644196,0.38149,2621.4,2621.3,0.38149]
[1727709646178,0.3815,2621.3,2621.2,1.75101]
[1727709646376,0.95372,2621.5,2621.1,0.99474799]
[1727709646586,0.38153,2621.1,2621.0,1.70924799]
[1727709646881,0.38153,2621.2,2621.1,0.38153]
[1727709647082,0.38153,2621.1,2621.0,1.09604]
[1727709648183,0.38153,2621.1,2621.0,1.09605]
[1727709648385,0.38153,2621.1,2621.0,0.7145]
[1727709648586,0.38153,2621.1,2621.0,1.09605]
[1727709651086,0.38153,2621.1,2621.0,0.7145]
[1727709651283,4.5353,2621.4,2620.7,1.71394799]
[1727709651492,0.38158,2620.8,2620.7,1.10079]
[1727709651702,0.38158,2620.8,2620.7,0.38159]
[1727709653779,0.95391,2621.0,2620.6,2.38964799]
[1727709653978,0.95391,2621.0,2620.5,1.63410808]
[1727709653979,0.95395,2620.9,2620.5,0.99474799]
[1727709654191,0.38162,2620.6,2620.5,0.38161]
[1727709655685,0.38162,2620.6,2620.5,1.37635799]
[1727709656203,0.38162,2620.6,2620.5,0.99474799]
[1727709656498,0.38162,2620.5,2620.4,0.99474799]
[1727709658489,0.38164,2620.4,2620.3,3.27037481]
[1727709658693,0.38164,2620.4,2620.3,4.81255157]
[1727709658890,0.38164,2620.4,2620.3,3.41855157]
[1727709659094,0.38163,2620.5,2620.4,0.38163]
[1727709659388,0.38163,2620.5,2620.4,1.37643753]
[1727709660096,1.60663,2620.9,2620.4,3.03593301]
[1727709660295,1.60663,2620.9,2620.6,0.3816]
[1727709660296,0.3816,2620.7,2620.6,0.3816]
[1727709660594,0.38161,2620.6,2620.5,2.78554706]
[1727709661182,0.38161,2620.6,2620.5,2.40393706]
[1727709661697,0.38161,2620.6,2620.5,1.4099]
[1727709661900,13.0238,2620.6,2620.3,2.48876187]
[1727709662090,0.38165,2620.3,2620.2,0.99403706]
[1727709662397,0.38165,2620.3,2620.1,0.99403706]
[1727709662398,0.38166,2620.2,2620.1,0.99403706]
[1727709662796,0.38166,2620.2,2620.1,1.37571706]
[1727709663196,0.38166,2620.2,2620.1,2.92062767]
[1727709663388,0.38166,2620.3,2620.2,0.38166]
[1727709663590,0.38166,2620.3,2620.2,1.37725899]
[1727709664199,0.38166,2620.3,2620.2,0.99559899]
[1727709666288,0.38166,2620.3,2620.1,1.37726899]
[1727709666687,1.05454,2620.4,2620.2,0.38166]
[1727709666992,1.05454,2620.4,2620.2,1.37725899]
[1727709667298,0.38166,2620.3,2620.1,1.37726899]
[1727709667792,0.6729,2620.4,2620.1,0.99559899]
[1727709667994,0.38166,2620.3,2620.1,1.37726899]
[1727709668193,0.38166,2620.3,2620.1,0.99559899]
[1727709668499,0.38166,2620.3,2620.2,0.38166]
[1727709669202,0.38166,2620.3,2620.1,1.37726899]
[1727709670195,1.05454,2620.4,2620.2,0.38165]
[1727709670402,1.05454,2620.4,2620.1,1.37726899]
[1727709670403,0.38166,2620.3,2620.1,1.37726899]
[1727709670595,0.6729,2620.4,2620.1,1.37726899]
[1727709670795,3.2078,2620.6,2620.4,0.38162]
[1727709671096,3.58941,2620.6,2620.5,1.04832]
[1727709671492,3.2078,2620.6,2620.5,1.04832]
[1727709671686,0.7088,2620.9,2620.5,1.04832]
[1727709671687,0.38157,2620.9,2620.7,0.38158]
[1727709672002,3.2078,2621.1,2620.5,1.66229899]
[1727709672297,3.2078,2621.1,2620.9,0.38156]
[1727709672503,3.2078,2621.1,2620.6,6.07084989]
[1727709672994,0.38155,2621.0,2620.9,0.38155]
[1727709673195,0.38155,2621.0,2620.6,6.07084989]
[1727709673506,3.2078,2621.1,2620.9,0.38155]
[1727709673507,3.58935,2621.1,2620.9,0.38155]
[1727709673696,3.2078,2621.5,2621.0,3.7596]
[1727709673896,0.38149,2621.4,2621.1,1.07763]
[1727709674195,0.38151,2621.3,2621.1,1.07763]
[1727709674392,3.2078,2621.8,2621.2,2.38]
[1727709674589,3.2078,2621.8,2621.2,6.42854703]
[1727709674805,0.38147,2621.6,2621.5,0.38148]
[1727709674989,4.1614,2621.8,2621.4,0.38148]
[1727709675195,0.38145,2621.7,2621.5,0.38147]
[1727709675399,0.38146,2621.6,2621.2,6.42854703]
[1727709675605,0.38145,2621.7,2621.5,0.38147]
[1727709675804,0.38146,2621.6,2621.5,0.38147]
[1727709676102,4.1614,2621.8,2621.4,0.38148]
[1727709676103,0.38145,2621.7,2621.4,0.38148]
[1727709676296,4.1614,2621.8,2621.2,6.42854703]
[1727709676490,0.38147,2621.6,2621.2,6.42854703]
[1727709676693,0.38147,2621.6,2621.5,0.38148]
[1727709676897,0.38147,2621.6,2621.2,6.42854703]
[1727709677104,0.38148,2621.5,2621.4,0.38148]
[1727709677306,0.38147,2621.6,2621.4,0.38148]
[1727709677508,0.38146,2621.6,2621.5,0.38147]
[1727709677695,0.38148,2621.5,2621.4,0.38149]
[1727709678002,4.1614,2621.8,2621.2,7.42414602]
[1727709678200,4.1614,2621.8,2621.1,1.69169899]
[1727709678499,0.38149,2621.4,2621.1,1.69169899]
[1727709678699,0.38149,2621.4,2621.3,0.3815]
[1727709678907,3.2078,2621.8,2621.1,1.69169899]
[1727709679207,3.2078,2621.8,2621.4,0.38148]
[1727709679598,0.38148,2621.5,2621.3,0.3815]
[1727709679798,0.38147,2621.6,2621.4,0.38148]
[1727709680798,4.16141,2621.8,2621.4,0.38148]
[1727709681000,0.38148,2621.5,2621.4,0.38148]
[1727709681205,0.38148,2621.5,2621.1,4.89949899]
[1727709681592,4.16141,2621.8,2621.1,4.89949899]
[1727709681798,0.38147,2621.6,2621.4,0.38148]
[1727709682196,0.38147,2621.6,2621.5,0.38148]
[1727709682500,0.38148,2621.5,2621.3,0.38149]
[1727709682706,0.38147,2621.6,2621.4,0.38148]
[1727709682898,0.95363,2621.7,2621.1,4.89949899]
[1727709683098,0.38149,2621.4,2621.3,0.3815]
[1727709683499,0.38149,2621.4,2621.2,0.38151]
[1727709683700,0.38149,2621.4,2621.3,0.3815]
[1727709683900,1.65957,2621.6,2621.3,0.3815]
[1727709684096,1.65957,2621.6,2621.1,4.89949899]
[1727709684402,3.2078,2622.2,2621.4,5.5878]
[1727709684599,0.38138,2622.2,2622.0,0.3814]
[1727709684902,0.38138,2622.2,2622.0,0.38139]
[1727709685307,4.84615,2622.5,2621.8,1.3998]
[1727709685308,3.8928,2622.5,2621.9,3.37559899]
[1727709685502,3.2078,2622.5,2622.1,2.38]
[1727709685699,3.9137,2622.9,2622.3,2.76135]
[1727709685905,0.38131,2622.7,2622.3,2.76135]
[1727709686102,0.38129,2622.8,2622.3,2.38]
[1727709686412,0.38133,2622.6,2622.4,0.711]
[1727709686609,3.9137,2622.9,2622.4,0.711]
[1727709686802,0.685,2623.0,2622.6,0.38131]
[1727709687004,0.38127,2622.9,2622.6,0.38131]
[1727709687203,0.38127,2622.9,2622.5,0.38132]
[1727709687404,0.685,2623.0,2622.4,1.4261]
[1727709687606,0.38128,2622.9,2622.6,0.38131]